[Event "SixDays Budapest March IM 2023"]
[Site "Budapest"]
[Date "2023.03.25"]
[Round "2.2"]
[White "Ulasevich, Sergei"]
[Black "Szeberenyi, Adam"]
[Result "1/2-1/2"]
[ECO "B40"]
[WhiteElo "2236"]
[BlackElo "2338"]
[Annotator "TA"]
[PlyCount "69"]
[EventDate "2023.03.24"]
[EventType "tourn"]
[EventCountry "HUN"]
[SourceTitle "playchess.com"]
[Source "ChessBase"]
[SourceQuality "1"]
[TimeControl "5400+30"]

{[%evp 15,69,19,31,5,1,2,3,2,13,14,10,16,19,-10,-6,-12,-14,-14,-5,-32,-35,-46,-20,-17,-21,-23,-11,-8,0,-8,0,0,0,0,0,0,0,0,0,0,0,-27,-28,-110,0,0,0,0,0,-5,5,0,0,-8,-8,-14]} 1. e4 {[%emt 0:01:01]} c5 {[%emt 0:00:36]} 2. Nf3 {[%emt 0:01:02]} e6 {[%emt 0:00:05]} 3. g3 {[%emt 0:00:05]} Nc6 {[%emt 0:00:45]} 4. Bg2 {[%emt 0:00:06]} Nf6 {[%emt 0:01:38]} 5. d3 {[%emt 0:00:43]} d6 {[%emt 0:08:15]} 6. O-O {[%emt 0:00:33]} Be7 {[%emt 0:00:12]} 7. Re1 {[%emt 0:01:33]} O-O {[%emt 0:04:39]} 8. c3 {[%emt 0:00:09]} e5 {[%emt 0:04:46]} 9. d4 {[%emt 0:08:01] B30: Sicilian: 2...Nc6 3 Bb5, lines without ...g6.} exd4 {[%emt 0:15:06]} 10. cxd4 {[%emt 0:00:33]} Bg4 {[%emt 0:02:28]} 11. dxc5 {[%emt 0:12:26]} dxc5 {[%emt 0:01:04] [#]} (11... d5 {seems wilder.} 12. exd5 Nxd5 13. Nc3 Nxc3 14. bxc3 Bxc5 15. h3 Be6) 12. Nc3 $146 {[%emt 0:00:34]} ({Predecessor:} 12. Qxd8 Raxd8 13. Nc3 Nb4 14. Rb1 Nc2 15. Rf1 Nd4 16. Nxd4 cxd4 17. Nd5 Nxd5 18. exd5 {0-1 Loy,K (2268)-Agibileg,U (2413) Titled Tuesday intern op 09th Feb blitz 2021 (7)}) 12... Qxd1 {[%emt 0:17:34]} 13. Rxd1 {[%emt 0:00:26]} Rad8 {[%emt 0:11:41] [#] Threatens to win with ...Nd4.} 14. Rxd8 {[%emt 0:12:43]} Rxd8 {[%emt 0:00:14]} 15. h3 {[%emt 0:00:04]} Be6 {[%emt 0:05:54]} 16. Ng5 {[%emt 0:08:35]} Bc8 {[%emt 0:04:29]} 17. f4 {[%emt 0:07:33]} Nb4 {[%emt 0:00:22]} 18. e5 {[%emt 0:13:58]} Nfd5 {[%emt 0:00:04]} 19. Nxd5 {[%emt 0:00:08]} Nxd5 {[%emt 0:00:05]} 20. Ne4 {[%emt 0:00:05]} Nb4 {[%emt 0:00:33]} 21. Bd2 {[%emt 0:00:51]} Nd3 {[%emt 0:00:31]} 22. b3 {[%emt 0:02:33]} f6 {[%emt 0:01:09]} 23. exf6 {[%emt 0:01:34]} gxf6 {[%emt 0:00:15]} 24. Bc3 {[%emt 0:02:32]} Kf7 {[%emt 0:00:05]} 25. Rd1 {[%emt 0:03:08]} b5 {[%emt 0:01:09][%cal Bb7b5,Bb5b4][%mdl 32]} 26. Ba5 {[%emt 0:02:05]} Rd4 {[%emt 0:00:12][%cal Od3f4]} 27. Bc3 {[%emt 0:04:43]} Rd7 {[%emt 0:04:52]} 28. Nf2 {[%emt 0:04:30]} b4 {[%emt 0:03:19] [#] ...Nxf2 would be deadly.} 29. Ba1 {[%emt 0:04:01]} (29. Rxd3 $11 Rxd3 30. Nxd3 bxc3 31. Kf2) 29... Nxf2 {[%emt 0:00:40]} (29... c4 $1 $17 {White must now prevent ...Bc5.} 30. Nxd3 (30. bxc4 $2 Bc5 $19) 30... Bc5+ 31. Kf1 cxd3) 30. Rxd7 $11 {[%emt 0:00:03] The position is equal.} Bxd7 {[%emt 0:00:08]} 31. Kxf2 $17 {[%emt 0:00:03] KBB-KBB} Be6 {[%emt 0:00:49]} 32. Bf1 {[%emt 0:00:09]} f5 {[%emt 0:00:59]} 33. Ke3 {[%emt 0:01:05]} Bf6 {[%emt 0:05:41]} 34. Bxf6 {[%emt 0:00:15]} Kxf6 {[%emt 0:00:02]} 35. Bb5 {[%emt 0:00:15] Weighted Error Value: White=0.11 (very precise) /Black=0.09 (flawless)} 1/2-1/2

[Event "SixDays Budapest March IM 2023"]
[Site "Budapest"]
[Date "2023.03.25"]
[Round "2.3"]
[White "Gandhi, Anish"]
[Black "Neszmenyi, Zoltan"]
[Result "1-0"]
[ECO "C65"]
[WhiteElo "2187"]
[BlackElo "1885"]
[Annotator "TA"]
[PlyCount "127"]
[EventDate "2023.03.24"]
[EventType "tourn"]
[EventCountry "HUN"]
[SourceTitle "playchess.com"]
[Source "ChessBase"]
[SourceQuality "1"]
[TimeControl "5400+30"]

{[%evp 9,127,13,14,13,14,6,29,0,16,19,25,20,43,34,60,62,52,35,53,54,47,32,41,20,49,38,41,24,42,0,0,0,7,0,0,-6,47,30,43,0,0,0,-5,0,9,-40,61,65,69,68,71,66,74,69,66,54,68,54,63,63,170,72,72,71,84,0,0,-72,-97,-212,-225,-227,0,0,0,0,0,-277,-257,-257,-185,-336,8,8,2151,1838,1424,1150,29973,29974,29973,29973,29979,29980,29985,29978,12799,596,372,349,417,409,29989,552,547,0,29989,5620,1352,1112,29996,233,29992,29993,29994,29995,29997,29998,29998,29999]} 1. e4 {[%emt 0:00:38]} e5 {[%emt 0:00:40]} 2. Nf3 {[%emt 0:00:12]} Nc6 {[%emt 0:00:04]} 3. Bb5 {[%emt 0:00:08]} Nf6 {[%emt 0:00:07]} 4. d3 {[%emt 0:00:22]} Bc5 {[%emt 0:00:07]} 5. Nbd2 {[%emt 0:05:53]} O-O {[%emt 0:00:53]} 6. Bxc6 {[%emt 0:01:48] C65: Ruy Lopez: Berlin Defence (3...Nf6), unusual lines and 4 0-0 Bc5.} dxc6 {[%emt 0:00:09]} 7. Nc4 {[%emt 0:01:26]} Re8 {[%emt 0:06:01]} 8. Qe2 {[%emt 0:00:52] White has an edge.} Bg4 {[%emt 0:01:41]} 9. h3 {[%emt 0:01:12]} Bxf3 {[%emt 0:00:41]} 10. Qxf3 {[%emt 0:00:14]} b5 {[%emt 0:06:47]} 11. Ne3 {[%emt 0:01:43]} Bb4+ {[%emt 0:06:02]} 12. Kf1 {[%emt 0:03:33][%cal Be1f1,Bf1g2,Bg2h2][%mdl 32] [#]} Re6 $146 {[%emt 0:09:17]} ({Predecessor:} 12... Bc5 13. Nf5 a5 14. h4 h5 15. Bg5 a4 16. Rd1 g6 17. Nh6+ Kg7 18. g4 Rh8 {1-0 Karpanov,V (2218)-Carlier,P (1539) VW-Cup9 Gr31 email 2016}) 13. g3 {[%emt 0:01:28]} Nd7 {[%emt 0:05:15]} 14. Kg2 {[%emt 0:00:14]} a5 {[%emt 0:05:57]} 15. Rf1 {[%emt 0:01:44]} a4 {[%emt 0:02:44]} 16. a3 {[%emt 0:01:13]} Ba5 {[%emt 0:05:01]} 17. Qe2 {[%emt 0:01:07]} c5 {[%emt 0:05:06]} 18. Kh2 {[%emt 0:05:05]} c6 {[%emt 0:01:10]} 19. Bd2 {[%emt 0:01:17]} Bxd2 {[%emt 0:04:26]} 20. Qxd2 {[%emt 0:00:07]} Qg5 {[%emt 0:04:31]} 21. f4 {[%emt 0:02:00]} exf4 {[%emt 0:00:51]} 22. gxf4 {[%emt 0:00:07]} Qh5 {[%emt 0:01:35]} (22... Qf6 $11) 23. Rg1 {[%emt 0:00:53]} Rg6 {[%emt 0:04:05] Wards off Rg5} 24. Rxg6 {[%emt 0:07:04]} (24. Nf5 {with more complications.} Re8 25. Rg2 Rxg2+ 26. Qxg2 Qg6 27. Rg1) 24... hxg6 {[%emt 0:00:23]} 25. Rg1 {[%emt 0:00:07]} Qh4 {[%emt 0:03:26]} 26. Ng4 {[%emt 0:03:57]} f5 {[%emt 0:04:51]} 27. Nf2 {[%emt 0:02:09]} (27. Qf2 $11 {is superior.} Qxf2+ 28. Nxf2) 27... Qf6 {[%emt 0:04:10]} (27... Nf8 $15) 28. e5 $14 {[%emt 0:03:05]} Nxe5 {[%emt 0:01:33]} 29. fxe5 {[%emt 0:01:01]} Qxe5+ {[%emt 0:00:10]} 30. Kh1 {[%emt 0:00:03]} Qxb2 {[%emt 0:03:01]} 31. Qg5 {[%emt 0:01:42]} Qf6 {[%emt 0:02:33]} 32. Qxf6 {[%emt 0:02:20]} gxf6 {[%emt 0:00:07]} 33. Rxg6+ {[%emt 0:00:08][%mdl 4096] Endgame KRN-KR} Kf7 {[%emt 0:00:19]} 34. Rg1 {[%emt 0:00:02]} b4 {[%emt 0:01:23]} (34... Ke6 $14) 35. Ra1 {[%emt 0:01:09]} (35. Rb1 $18 {has better winning chances.}) 35... Ke6 $16 {[%emt 0:00:45]} 36. Nd1 {[%emt 0:03:44]} Ke5 {[%emt 0:03:03]} 37. Nb2 {[%emt 0:02:04]} ({Better is} 37. Kg2 $16) 37... Kd4 $11 {[%emt 0:03:19] And now ...Kc3 would win.} 38. axb4 {[%emt 0:01:53]} (38. Nc4 $11 {keeps the balance.}) 38... a3 $17 {[%emt 0:00:38]} 39. Nc4 (39. c3+ $17 Kxc3 40. Nd1+ Kb3 41. bxc5) 39... cxb4 $19 {Threatens to win with ...a2.} 40. Ra2 {[%emt 0:12:43]} Re8 $2 {[%emt 0:04:45]} (40... Rg8 $1 $19 {Hoping for ...f4.} 41. Nxa3 bxa3 42. Rxa3 f4 43. Ra4+ Ke3 44. Re4+ Kf3) 41. Kg2 $11 {[%emt 0:04:54]} Re1 {[%emt 0:01:18]} 42. h4 {[%emt 0:11:17]} Kc3 {[%emt 0:00:34] Strongly threatening ...Re2+.} 43. h5 $2 {[%emt 0:00:50][%mdl 8192]} (43. Nxa3 $11 bxa3 44. Rxa3+ Kxc2 45. h5) 43... Re2+ $19 {[%emt 0:00:34]} 44. Kg3 {[%emt 0:00:25][%cal Oc4a3]} Rxc2 {[%emt 0:01:11]} 45. Ra1 $2 {[%emt 0:00:01] [#]} (45. h6 Rxa2 46. h7 f4+ 47. Kh3) 45... a2 $2 {[%emt 0:01:04]} ({Stronger than} 45... Kxd3 46. Nxa3 f4+ 47. Kxf4 $15) ({Black should try} 45... f4+ $1 $19 46. Kh3 Re2) 46. h6 $11 {[%emt 0:01:35] h7 would be deadly.} Kxd3 $2 {[%emt 0:00:33][%mdl 8192] White leaves nothing to chance now.} (46... f4+ $11 47. Kh3 Re2) 47. h7 $18 {[%emt 0:00:35]} Kxc4 {[%emt 0:00:29]} 48. h8=Q {[%emt 0:00:10][%cal Oa1a2] Threatening mate with Rxa2!} b3 {[%emt 0:00:29]} 49. Qxf6 {[%emt 0:03:19]} Kb4 {[%emt 0:00:06]} 50. Qxf5 {[%emt 0:08:46]} c5 {[%emt 0:00:11]} 51. Qe5 {[%emt 0:02:07]} c4 {[%emt 0:00:14]} 52. Rd1 {[%emt 0:01:17]} Ka3 {[%emt 0:01:00]} 53. Rd7 {[%emt 0:02:41] Ra7+ would kill now.} c3 {[%emt 0:00:21]} 54. Ra7+ {[%emt 0:00:51]} Kb2 {[%emt 0:00:41]} 55. Qa5 {[%emt 0:00:02]} Kb1 {[%emt 0:00:55]} (55... Rc1 $18 56. Qa3+ Kc2) 56. Qf5 {[%emt 0:02:25]} (56. Qa4 $142 b2 57. Qxa2+ Kc1 58. Qc4 Rg2+ 59. Kf3 Kc2 60. Rc7 b1=N 61. Qa2+ {[%mdl 64] Skewer} Kc1 62. Kxg2) 56... Kb2 {[%emt 0:00:38]} 57. Qa5 {[%emt 0:00:44]} Kb1 $1 {[%emt 0:00:27]} 58. Qa3 {[%emt 0:00:31]} (58. Qa4 $142 b2 59. Qxa2+ Kc1 60. Qc4 Rg2+ 61. Kf3 Kc2 62. Rc7 b1=N 63. Qa2+ {[%mdl 64] Skewer} Kc1 64. Kxg2) 58... Rb2 {[%emt 0:00:29]} 59. Qc5 {[%emt 0:00:22] White wants to mate with Qg1+.} c2 {[%emt 0:00:27] [#]} 60. Qf5 $2 {[%emt 0:00:18]} (60. Rc7 $1 {mates} Ka1 61. Qd4 Kb1 62. Qg1+ c1=Q 63. Rxc1#) 60... Ka1 $2 {[%emt 0:00:36]} (60... a1=R $18 61. Qf1+ {[%mdl 64] Skewer} c1=Q 62. Rxa1+ {[%mdl 64] Deflection} Kxa1 63. Qxc1+ Ka2) 61. Rc7 {[%emt 0:00:48] White mates.} Rb1 {[%emt 0:00:33]} 62. Qe5+ {[%emt 0:00:06]} Rb2 {[%emt 0:00:17]} 63. Rc6 {[%emt 0:00:20]} Kb1 {[%emt 0:00:44]} 64. Qe1+ {[%emt 0:00:05] Weighted Error Value: White=0.60/Black=0.45} 1-0

[Event "SixDays Budapest March IM 2023"]
[Site "Budapest"]
[Date "2023.03.25"]
[Round "2.4"]
[White "Halak, Miklos"]
[Black "Horvath, David"]
[Result "1/2-1/2"]
[ECO "C11"]
[WhiteElo "2257"]
[BlackElo "2380"]
[Annotator "TA"]
[PlyCount "39"]
[EventDate "2023.03.24"]
[EventType "tourn"]
[EventCountry "HUN"]
[SourceTitle "playchess.com"]
[Source "ChessBase"]
[SourceQuality "1"]
[TimeControl "5400+30"]

{[%evp 14,26,26,10,10,15,11,12,13,6,19,8,18,20,27]} 1. e4 {[%emt 0:00:34]} e6 {[%emt 0:01:14]} 2. d4 {[%emt 0:00:06]} d5 {[%emt 0:00:02]} 3. Nc3 {[%emt 0:00:07]} Nf6 {[%emt 0:00:05]} 4. Bg5 {[%emt 0:00:07]} dxe4 {[%emt 0:00:06]} 5. Nxe4 {[%emt 0:00:06]} Be7 {[%emt 0:00:06]} 6. Bxf6 {[%emt 0:00:05]} gxf6 {[%emt 0:00:19]} 7. Nf3 {[%emt 0:00:09]} f5 {[%emt 0:00:10]} 8. Nc3 {[%emt 0:00:07]} a6 {[%emt 0:00:16] The position is equal. C13: French: Classical System: 4 Bg5 Be7, Alekhine-Chatard Attack.} 9. g3 {[%emt 0:00:10]} b5 {[%emt 0:00:06]} 10. Bg2 {[%emt 0:00:20] [#] Strongly threatening Ne5.} Bb7 {[%emt 0:00:07]} 11. O-O {[%emt 0:00:16][%cal Od4d5] With the idea d5!} O-O {[%emt 0:00:05]} 12. Ne5 {[%emt 0:00:24]} Bxg2 {[%emt 0:00:18]} 13. Kxg2 {[%emt 0:00:06]} b4 {[%emt 0:00:04] [#] An uneventful encounter.   Weighted Error Value: White=0.05 (flawless) /Black=0.00 (flawless)} {Predecessor:} 14. Na4 $146 Qd5+ 15. Qf3 Qxf3+ 16. Nxf3 Rd8 17. Rfd1 Nd7 18. c4 bxc3 19. Nxc3 Nb6 20. Ne5 {0-1 Hansen,E (2606)-Clarke,B (2470) Titled Tuesday intern op 21st Jun Late blitz 2022 (11)} 1/2-1/2

[Event "SixDays Budapest March IM 2023"]
[Site "Budapest"]
[Date "2023.03.25"]
[Round "2.5"]
[White "Balogh, Peter"]
[Black "To, Nhat Minh"]
[Result "0-1"]
[ECO "C47"]
[WhiteElo "2264"]
[BlackElo "2342"]
[Annotator "TA"]
[PlyCount "60"]
[EventDate "2023.03.24"]
[EventType "tourn"]
[EventCountry "HUN"]
[SourceTitle "playchess.com"]
[Source "ChessBase"]
[SourceQuality "1"]
[TimeControl "5400+30"]

{[%evp 16,59,0,0,5,6,18,12,27,0,7,0,10,-6,-12,-20,-22,-30,-30,-76,-66,-70,-77,-129,0,0,-11,-454,-432,-5393,-5365,-5139,-5293,-4829,-5154,-2818,-2612,-2323,-2181,-1998,-1977,-1633,-1561,-29998,-29999,-29999]} 1. e4 {[%emt 0:01:23]} e5 {[%emt 0:00:42]} 2. Nf3 {[%emt 0:00:37]} Nf6 {[%emt 0:00:04]} 3. Nc3 {[%emt 0:01:39]} Nc6 {[%emt 0:00:04]} 4. d4 {[%emt 0:01:39]} exd4 {[%emt 0:00:04]} 5. Nxd4 {[%emt 0:00:07]} Bb4 {[%emt 0:00:02]} 6. Nxc6 {[%emt 0:00:23]} bxc6 {[%emt 0:00:03]} 7. Bd3 {[%emt 0:00:16]} d5 {[%emt 0:00:03]} 8. Bd2 {[%emt 0:01:58]} O-O {[%emt 0:00:07]} 9. O-O {[%emt 0:00:06]} Rb8 {[%emt 0:00:38] C47: Scotch Four Knights and Four Knights with 4 g3.} 10. Re1 {[%emt 0:07:35]} Bg4 {[%emt 0:00:06]} 11. f3 {[%emt 0:01:28]} Bh5 {[%emt 0:00:08] [#] The position is equal.} 12. Qc1 $146 {[%emt 0:13:10]} ({Predecessor:} 12. e5 Nd7 13. Na4 c5 14. b3 Ba3 15. c4 Nb6 16. Nxb6 cxb6 17. Qc2 Bg6 18. cxd5 Qxd5 19. Bxg6 hxg6 {½-½ Jacobson,B (2491)-Ter Sahakyan,S (2640) Titled Arena Mar 6th blitz 2021}) 12... Bg6 {[%emt 0:03:26]} 13. e5 {[%emt 0:15:50]} Nd7 {[%emt 0:00:16][%cal Bf6d7,Bd7e5,Be5f3][%mdl 32]} 14. Bxg6 {[%emt 0:00:37]} fxg6 {[%emt 0:00:04]} 15. Na4 {[%emt 0:08:14] Black must now prevent e6.} (15. e6 {seems wilder.} Nb6 16. Nb5 Bxd2 17. Qxd2 Nc4 18. e7) 15... Qh4 {[%emt 0:03:46] And now ...Bxd2 would win.} 16. Bxb4 {[%emt 0:05:48]} Qxb4 {[%emt 0:00:27]} ({Don't play} 16... Rxb4 17. b3 $16) 17. b3 {[%emt 0:02:41] [#]} (17. e6 $11) 17... Nxe5 $1 $17 {[%emt 0:01:58][%mdl 64] Decoy} 18. c3 {[%emt 0:07:48]} (18. Rxe5 $2 {is the wrong capture.} Qd4+ 19. Qe3 (19. Re3 $2 Rbe8 $19) 19... Qxa1+ $19) 18... Qd6 {[%emt 0:00:36] Strongly threatening ...Nd3. Black is much more active. The white rooks are badly placed.} 19. Qe3 {[%emt 0:00:17] Prevents Nd3} ({White should play} 19. Qd2) 19... Rf5 {[%emt 0:13:41]} (19... Rbe8 $17 20. Qd2 g5) 20. Qxa7 $11 {[%emt 0:01:42]} Rbf8 $36 {[%emt 0:00:02][%mdl 2048] ...Rh5 is the strong threat. Black fights for an advantage.} 21. Re3 $2 {[%emt 0:01:47][%mdl 8192] [#] This move loses the game for White.} (21. Qc5 $1 $11 {and White has nothing to worry.}) 21... Rh5 $1 $19 {[%emt 0:05:02]} 22. Qc5 {[%emt 0:04:57] [#]} (22. f4 $142 Ng4 23. Rg3 Nxh2 24. Qe3 Rxf4 25. Nc5) 22... Nxf3+ $1 {[%emt 0:01:15][%mdl 512]} 23. Rxf3 {[%emt 0:05:47]} Qxh2+ {[%emt 0:00:08]} 24. Kf2 {[%emt 0:01:45]} Rxf3+ {[%emt 0:00:27][%mdl 64] Remove Defender} 25. Kxf3 {[%emt 0:00:08]} Rf5+ {[%emt 0:00:09]} 26. Ke3 {[%emt 0:00:47]} Qg3+ {[%emt 0:01:11]} 27. Ke2 {[%emt 0:01:03]} Qxg2+ {[%emt 0:00:27]} 28. Kd3 {[%emt 0:00:53]} Rf3+ {[%emt 0:00:46]} 29. Kd4 {[%emt 0:00:08]} Qg4+ {[%emt 0:00:26]} 30. Ke5 {[%emt 0:00:06]} Qe4# {[%emt 0:00:05] A cool game by To.   Weighted Error Value: White=0.67/Black=0.14 (very precise)} 0-1

[Event "SixDays Budapest March IM 2023"]
[Site "Budapest"]
[Date "2023.03.25"]
[Round "3.1"]
[White "To, Nhat Minh"]
[Black "Pham, Tran Gia Phuc"]
[Result "1/2-1/2"]
[ECO "A61"]
[WhiteElo "2342"]
[BlackElo "2238"]
[Annotator "TA"]
[PlyCount "120"]
[EventDate "2023.03.24"]
[EventType "tourn"]
[EventCountry "HUN"]
[SourceTitle "playchess.com"]
[Source "ChessBase"]
[SourceQuality "1"]
[TimeControl "5400+30"]

{[%evp 21,120,55,52,52,47,42,74,67,74,68,85,68,77,60,62,40,72,11,25,0,18,16,26,23,27,0,67,47,90,90,83,85,67,57,83,0,0,0,166,179,180,179,122,141,115,95,156,0,0,0,0,0,0,0,51,51,50,50,50,55,55,51,77,70,58,61,60,43,217,81,81,81,81,81,81,81,119,36,84,0,0,0,0,0,0,0,0,0,0,0,0,0,0,0,0,0,0,0,0,0,0]} 1. d4 {[%emt 0:00:32]} Nf6 {[%emt 0:00:35]} 2. c4 {[%emt 0:00:04]} c5 {[%emt 0:00:02]} 3. d5 {[%emt 0:00:04]} e6 {[%emt 0:00:03]} 4. Nc3 {[%emt 0:00:12]} exd5 {[%emt 0:00:06]} 5. cxd5 {[%emt 0:00:05]} d6 {[%emt 0:00:05]} 6. Nf3 {[%emt 0:00:04]} g6 {[%emt 0:00:03]} 7. Nd2 {[%emt 0:00:04]} Bg7 {[%emt 0:00:20]} 8. e4 {[%emt 0:00:05]} O-O {[%emt 0:00:06]} 9. Be2 {[%emt 0:00:02]} Ne8 {[%emt 0:00:06]} 10. O-O {[%emt 0:00:10]} Nd7 {[%emt 0:00:36]} 11. a4 {[%emt 0:04:47]} Nc7 {[%emt 0:00:12]} 12. Kh1 {[%emt 0:05:43] [#] A73: Modern Benoni: Classical: Unusual Black 9th moves.} f5 $146 {[%emt 0:06:06]} ({Predecessor:} 12... Re8 13. f4 Nf6 14. g4 h6 15. f5 b6 16. Rg1 g5 17. h4 Qe7 18. hxg5 hxg5 19. Rg2 Bb7 {½-½ Pradeilles,G (1996)-Aymard,M (2030) FRA AJEC/5651 email 2021}) 13. exf5 {[%emt 0:02:52]} gxf5 {[%emt 0:00:06]} 14. Nc4 {[%emt 0:02:14] White is better.} Ne5 {[%emt 0:00:14]} 15. Bf4 {[%emt 0:00:32]} Nxc4 {[%emt 0:00:33]} 16. Bxc4 {[%emt 0:00:06]} Qf6 {[%emt 0:00:43]} 17. Qb3 {[%emt 0:13:40]} b6 {[%emt 0:07:24]} 18. Rae1 {[%emt 0:01:16]} (18. Nb5 {feels hotter.} Nxb5 19. Bxb5 Qxb2 20. Qg3) 18... Bd7 {[%emt 0:00:32]} 19. Re3 {[%emt 0:07:36]} (19. Ne2 $16) 19... Rae8 $11 {[%emt 0:01:30]} 20. h3 {[%emt 0:02:54]} Kh8 {[%emt 0:01:43]} (20... Bh6 $5 {[%cal Rh6f4]} 21. Ne2 Kh8 $11) 21. Rfe1 {[%emt 0:05:39]} Bh6 {[%emt 0:02:26]} 22. Bxh6 {[%emt 0:03:28]} Qxh6 {[%emt 0:00:06]} 23. Bb5 {[%emt 0:03:29]} (23. Nb5 $5 {[%cal Rb5c7]} Bxb5 24. Qc3+ (24. Bxb5 Rxe3 25. Rxe3 Qg7 $14) 24... Qg7 25. axb5 $14) 23... f4 {[%emt 0:00:24]} (23... Rxe3 $11 24. fxe3 Bxb5 25. axb5 Re8) 24. Rxe8 $1 $14 {[%emt 0:01:59]} Rxe8 {[%emt 0:01:34]} 25. Rxe8+ {[%emt 0:03:02]} Bxe8 {[%emt 0:00:07]} 26. Bxe8 {[%emt 0:05:55]} Nxe8 {[%emt 0:00:20][%mdl 4096] Endgame KQN-KQN} 27. Qb5 $1 {[%emt 0:01:02]} Qh5 {[%emt 0:06:17]} 28. f3 {[%emt 0:05:58]} (28. Qd7 $16) 28... Qe5 {[%emt 0:02:22]} 29. Ne4 {[%emt 0:09:52] Qd7 would be deadly.} Nc7 $2 {[%emt 0:01:20]} (29... Nf6 $11 {and Black is okay.}) 30. Qc6 $1 $18 {[%emt 0:04:15]} Nxd5 {[%emt 0:10:08]} 31. Qa8+ $1 {[%emt 0:00:07]} (31. Nxd6 Qe1+ 32. Kh2 Qg3+ 33. Kg1 Qe1+ 34. Kh2 Qg3+ 35. Kg1 Qe1+ 36. Kh2 $11) (31. Qxd6 Qxd6 32. Nxd6 Kg7 $11) 31... Kg7 {[%emt 0:00:32]} 32. Qxa7+ {[%emt 0:00:05]} Kg6 {[%emt 0:00:04]} 33. Qb8 {[%emt 0:01:47]} (33. Qd7 {looks sharper.} h6 34. Qd8 Kh7 35. Qf8) 33... Nf6 {[%emt 0:00:09] Inhibits Qg8+.} ({Better is} 33... h5) 34. Qxb6 $2 {[%emt 0:03:32] White is more active.} (34. Nxd6 Qe1+ 35. Kh2 Qg3+ 36. Kh1 Qe1+ 37. Kh2 Qg3+ 38. Kh1 Qe1+ $11) ({Only move:} 34. Qxd6 $16 Qxd6 35. Nxd6) 34... Nxe4 $11 {[%emt 0:00:07]} 35. fxe4 $16 {[%emt 0:00:05] Threatens to win with Qd8. KQ-KQ} f3 $1 {[%emt 0:00:04]} 36. gxf3 {[%emt 0:03:25]} Qg3 {[%emt 0:00:05][%csl LRf3,LRh3]} 37. Qb3 {[%emt 0:01:19] White threatens Qg8+ and mate.} Qxh3+ {[%emt 0:00:47]} (37... Qe1+ $1 $11 38. Kg2 Qe2+ 39. Kg1 Qe1+ 40. Kg2 Qe2+ 41. Kh1 Qe1+ 42. Kh2 (42. Kg2 Qe2+ $11) 42... Qf2+ 43. Kh1 Qe1+) 38. Kg1 $14 {[%emt 0:00:02]} Qg3+ {[%emt 0:00:58]} 39. Kf1 {[%emt 0:00:10]} Qh3+ {[%emt 0:00:05]} 40. Kf2 {[%emt 0:02:30]} Qh2+ {[%emt 0:00:09]} 41. Ke3 {[%emt 0:00:45] Strongly threatening Qg8+.} Qg1+ {[%emt 0:01:24]} 42. Kd2 {[%emt 0:00:18] White wants to mate with Qg8+.} Qf2+ {[%emt 0:00:20]} 43. Kc1 {[%emt 0:00:28] And now Qd1 would win.} Qf1+ {[%emt 0:00:06]} 44. Qd1 {[%emt 0:00:38]} (44. Kc2 $5 {[%cal Rb3d3]} Qe2+ 45. Kc1 $16) 44... Qa6 {[%emt 0:00:06]} (44... Qc4+ $14 45. Kd2 Qb4+ 46. Ke3 Kf7) 45. f4 {[%emt 0:01:18]} (45. b3 $18 {and White stays clearly on top.}) 45... Qc4+ $16 {[%emt 0:00:09] [#]} 46. Kb1 $1 {[%emt 0:01:27] aiming for e5.} Kf7 {[%emt 0:01:35]} (46... Qxe4+ $2 47. Qc2 d5 48. a5 $18) 47. Qh5+ {[%emt 0:02:09]} ({But not} 47. Qxd6 $6 Qxe4+ 48. Kc1 Qxa4 $11) 47... Ke7 {[%emt 0:05:03]} 48. Qxh7+ {[%emt 0:00:20]} Kd8 {[%emt 0:00:04]} 49. Qh4+ {[%emt 0:02:19]} (49. Qb7 $16) 49... Kc7 $1 $14 {[%emt 0:00:29] [#]} 50. Qe7+ {[%emt 0:03:06]} (50. f5 $1 $16 {Hoping for Qe7+.} Qf1+ 51. Kc2 Qe2+ 52. Kc1) 50... Kc6 $11 {[%emt 0:00:05] The position is equal.} 51. Qe8+ {[%emt 0:00:29]} Kc7 $1 {[%emt 0:00:06]} 52. Qe7+ {[%emt 0:00:32]} Kc6 {[%emt 0:00:06]} 53. Qe8+ {[%emt 0:00:07]} Kc7 $1 {[%emt 0:00:06]} 54. f5 {[%emt 0:02:16]} Qf1+ {[%emt 0:00:26]} 55. Kc2 {[%emt 0:00:21]} (55. Ka2 $5 Qc4+ $8 56. b3 Qc2+ 57. Ka3 $11) 55... Qe2+ $1 {[%emt 0:00:04]} 56. Kc1 {[%emt 0:00:36]} Qe1+ {[%emt 0:00:07]} 57. Kc2 {[%emt 0:00:02]} Qe2+ $1 {[%emt 0:00:05]} 58. Kc3 {[%emt 0:00:46] Black must now prevent Qf7+.} Qe3+ {[%emt 0:00:06]} 59. Kc2 {[%emt 0:00:40]} Qe2+ $1 {[%emt 0:00:08]} 60. Kb1 {[%emt 0:00:22] Qf7+ is the strong threat.} Qf1+ {[%emt 0:00:19] Weighted Error Value: White=0.16 (very precise) /Black=0.17 (very precise)} 1/2-1/2